Cogmind - Beta 13 @@@ ROGUE MODE // 2024.04.09 @ 18:00:36 Player: Zaros426 Result: Destroyed by C-17 Slicer with Blade Saw Performance ------------- Evolutions (4) 2000 Regions Visited (8) 1600 Robots Destroyed (67) 335 Value Destroyed (1929) 1929 Prototype IDs (29) 580 Alien Tech Used (0) 0 Bonus (829) 829 TOTAL SCORE: 7273 Bonus ------- High Alert Combat Kills 8 Follower Combat Kills 21 Entered DSFs 500 Aligned with FarCom 300 Cogmind --------- Core Integrity 0/850 Matter 213/300 Energy 99/100 System Corruption 5% Temperature Cool (0) Movement Core (50) Location -6/DSF Parts ------- > --- POWER (1) -------- (None) > --- PROPULSION (3) --- (None) > --- UTILITY (9) ------ (None) > --- WEAPON (2) ------- (None) > --- INVENTORY (5) ---- Light Nuclear Core Cooling System Large Matter Pod (150) Peak State ------------ > --- POWER ------------ Light Nuclear Core > --- PROPULSION ------- Medium Treads Medium Treads > --- UTILITY ---------- Lightpack 2.0 Improved Sensor Array Improved Signal Interpreter Medium Armor Plating Supersonic Drone Bay PSU Rigger > --- WEAPON ----------- Powered Hammer Powered Hammer > --- INVENTORY -------- Light Nuclear Core Medium Treads Medium Treads Aluminum Leg Aluminum Leg Gravmag System Gravmag System Gravmag System Improved VTOL Module Cooling System Coolant Injector Large Matter Pod Sensor Array Signal Interpreter Melee Analysis Suite Core Analyzer Core Analyzer Advanced ECM Suite Reaction Control System Utility Shielding Powered Armor Beam Rifle Spread Laser Light Assault Rifle High-powered Shotgun Improved Datajack [Rating: 80] Favorites ----------- Power Light Nuclear Core Engine Ion Engine Power Core Light Nuclear Core Propulsion Wheel Treads Medium Treads Leg Aluminum Leg Wheel Wheel Hover Unit Gravmag System Flight Unit VTOL Module Utility Signal Interpreter Device Improved Sensor Array Storage Huge Storage Unit Processor Signal Interpreter Protection Light Armor Plating Weapon Grenade Launcher Energy Gun Small Laser Ballistic Gun Heavy Battle Rifle Ballistic Cannon Flak Cannon Launcher Grenade Launcher Impact Weapon Powered Hammer Slashing Weapon Blade Saw Build | -11 -10 -10 -10 -9 -8 -7 -6 -6 ------- Run | Yrd Mat Min Exi Min Mat Fac Fac DSF Slots Evolved 8 | . . . . . 4 2 2 . Power . | . . . . . . . . . Propulsion 1 | . . . . . . . 1 . Utility 7 | . . . . . 4 2 1 . Weapon . | . . . . . . . . . Parts Attached 117 | 8 18 4 . 2 28 43 2 12 Power 11 | 1 1 1 . . 3 5 . . Engine 6 | 1 1 . . . 2 2 . . Core 5 | . . 1 . . 1 3 . . Reactor . | . . . . . . . . . Propulsion 33 | 3 7 . . 2 7 11 . 3 Treads 3 | . . . . . 1 2 . . Leg 2 | . . . . . 2 . . . Wheel 12 | 3 5 . . 2 . 1 . 1 Hover 12 | . . . . . 3 8 . 1 Flight 4 | . 2 . . . 1 . . 1 Utility 46 | 2 5 . . . 8 24 2 5 Device 25 | 1 3 . . . 5 12 1 3 Storage 3 | 1 1 . . . 1 . . . Processor 5 | . 1 . . . 1 2 . 1 Hackware . | . . . . . . . . . Protection 13 | . . . . . 1 10 1 1 Artifact . | . . . . . . . . . Weapon 27 | 2 5 3 . . 10 3 . 4 Energy Gun 7 | 1 2 . . . 3 1 . . Energy Cannon . | . . . . . . . . . Ballistic Gun 7 | 1 . 2 . . 3 1 . . Ballistic Cannon 2 | . . . . . . . . 2 Launcher 4 | . 3 1 . . . . . . Special Weapon . | . . . . . . . . . Impact Weapon 6 | . . . . . 4 1 . 1 Slashing Weapon 1 | . . . . . . . . 1 Piercing Weapon . | . . . . . . . . . Special Melee Weapon . | . . . . . . . . . Unidentified Prototypes 6 | . . . . . 2 4 . . Parts Lost 38 | . 6 . . 2 7 9 . 14 Power 5 | . 2 . . . 1 1 . 1 Propulsion 11 | . 1 . . 2 2 3 . 3 Utility 14 | . 1 . . . 1 5 . 7 Weapon 8 | . 2 . . . 3 . . 3 Highest Loss Streak 8 | . 4 . . 2 5 5 . 8 To Critical Strikes . | . . . . . . . . . Average Slot Usage (%) 87 | . 77 95 100 99 70 79 73 56 Engine 1 | . 11 . . . 2 1 . . Core 8 | . . 9 14 14 5 5 6 4 Wheel 18 | . 23 28 28 27 3 1 . . Hover 2 | . . . . . 6 7 13 5 Device 5 | . 10 . . . 9 14 9 8 Storage 10 | . 1 14 14 14 9 7 6 4 Processor 12 | . 1 14 14 14 9 13 20 19 Protection 2 | . . . . . 5 7 9 3 Energy Gun 3 | . 16 6 . . 3 . . . Ballistic Gun 7 | . . 10 14 14 4 . . . Launcher 8 | . 9 10 14 14 1 . . . Impact Weapon 3 | . . . . . 5 14 6 4 Naked Turns 5 | . . . . . . . . 5 Heaviest Build 92 | 14 84 92 92 92 22 36 18 22 Greatest Support 56 | 20 20 20 20 20 27 56 18 28 Greatest Overweight (x) 4 | 1 4 4 4 4 2 1 . 1 Average Overweight (x) 1 | . . 4 4 4 . . . . Largest Inventory Capacity 40 | 8 25 25 25 25 40 40 40 40 Average Capacity 26 | 7 6 25 25 25 40 40 40 29 Most Carried 40 | 1 10 14 20 23 27 29 29 40 Average Carried 17 | . 4 12 17 21 17 26 28 24 Final Capacity 40 | 8 25 25 25 25 40 40 40 5 Final Carried 29 | 1 10 14 20 22 27 29 28 3 Class Distribution -------------------- 58% | Mutant 20% | Hauler-Mutant 9% | Scavenger-Mutant 7% | Hauler-Gladiator Dominant Class ---------------- Mutant | -10/Materials Mutant | -10/Mines Mutant | -10/Exiles Mutant | -9/Mines Hauler-Mutant | -8/Materials Hauler-Mutant | -7/Factory Hauler-Mutant | -6/Factory Mutant | -6/DSF Resources | -11 -10 -10 -10 -9 -8 -7 -6 -6 ----------- Run | Yrd Mat Min Exi Min Mat Fac Fac DSF Matter Collected 1607 | 154 396 128 . 101 273 400 . 155 Remotely . | . . . . . . . . . Salvage Created 1922 | 130 462 30 . 70 271 822 . 137 Parts 100 | 14 47 3 . 4 17 8 . 7 Haulers Intercepted 4 | . 1 . . . 1 2 . . Recyclers Shooed 1 | . 1 . . . . . . . Parts Field Recycled . | . . . . . . . . . Retrieved Matter . | . . . . . . . . . Parts Self-Destructed . | . . . . . . . . . Prevented . | . . . . . . . . . Kills | -11 -10 -10 -10 -9 -8 -7 -6 -6 ------- Run | Yrd Mat Min Exi Min Mat Fac Fac DSF Combat Hostiles Destroyed 42 | . 10 3 . 5 5 14 . 5 Melee 9 | . . . . . . 7 . 2 Guns 10 | . 4 1 . 1 4 . . . Cannons 1 | . . . . . . . . 1 AOE 12 | . 6 2 . 4 . . . . Classes Destroyed 13 | 2 7 . . . 1 1 . 2 Worker 4 | . 3 . . . . 1 . . Builder 1 | . 1 . . . . . . . Tunneler 6 | 4 2 . . . . . . . Hauler 4 | . 1 . . . 1 2 . . Recycler 2 | 1 . . . . . 1 . . Mechanic 1 | . 1 . . . . . . . Watcher 7 | . 3 . . . 1 3 . . Swarmer 9 | . 3 3 . 3 . . . . Cutter 3 | . . . . . . . . 3 Grunt 21 | . 7 . . 2 2 10 . . Duelist 2 | . . . . . . 2 . . Sentry 5 | . . . . . 3 2 . . Specialist 2 | . . . . . . . . 2 Best Kill Streak 9 | 3 4 3 . 3 3 9 . 2 Combat Bots Only 6 | . 3 3 . 3 3 6 . 2 Max Kills in Single Turn 3 | 1 3 2 . 1 1 1 . 1 Gunslinging . | . . . . . . . . . Exploded 3 | . 3 2 . 1 . . . . Melee 1 | . . . . . . 1 . 1 Uniques/NPCs Destroyed . | . . . . . . . . . Combat | -11 -10 -10 -10 -9 -8 -7 -6 -6 -------- Run | Yrd Mat Min Exi Min Mat Fac Fac DSF Hostile Shots Fired 472 | . 52 7 . 11 58 245 . 99 Missed 146 | . 17 4 . . 9 83 . 33 Damage Taken 5803 | . 527 21 . 158 777 2731 . 1589 Core 1855 | . 149 . . 22 228 601 . 855 Absorbed by Shields 159 | . . . . . . . . 159 Redirected to Shielding 55 | . . . . . . 9 . 46 Regen/Repaired (Parts) 114 | . . . . . . 114 . . Core Remaining (%) 50 | 100 . . . 31 58 14 . . Volleys Fired 102 | 17 44 3 . 17 16 . . 5 Largest 2 | 2 2 2 . 1 2 . . 2 Hottest 90 | 70 90 60 . 33 65 . . 88 Shots Fired 141 | 34 63 4 . 17 17 . . 6 Gun 102 | 34 45 3 . 6 14 . . . Cannon 6 | . . . . . . . . 6 Launcher 33 | . 18 1 . 11 3 . . . Special . | . . . . . . . . . Kinetic 35 | 17 . 1 . 6 5 . . 6 Thermal 73 | 17 45 2 . . 9 . . . Explosive 33 | . 18 1 . 11 3 . . . Electromagnetic . | . . . . . . . . . Robot Hit Streak 10 | 7 10 8 . 2 9 . . 2 Robot Miss Streak 5 | 2 3 2 . 3 5 . . 4 Penetration Max . | . . . . . . . . . Secondary Targets . | . . . . . . . . . Shots Hit Robots 159 | 22 35 2 . 5 18 58 . 19 Core Hits 84 | 9 36 3 . 7 15 5 . 9 Critical Kills 2 | . . . . . 1 1 . . Critical Parts Destroyed 16 | . . . . . 3 13 . . Critical Strikes 24 | 1 . . . . 5 16 . 2 Burn 1 | 1 . . . . . . . . Destroy 2 | . . . . . 2 . . . Smash 19 | . . . . . 3 16 . . Sever 2 | . . . . . . . . 2 Melee Attacks 105 | . . . . . 9 78 . 18 Impact 99 | . . . . . 9 78 . 12 Slashing 6 | . . . . . . . . 6 Piercing . | . . . . . . . . . Sneak Attacks 10 | . . . . . 2 7 . 1 Combat Hostiles 1 | . . . . . . . . 1 Follow-up Attacks 16 | . . . . . . 14 . 2 Damage Inflicted 5998 | 234 1225 142 . 300 534 2912 . 651 Guns 894 | 234 340 11 . 96 213 . . . Cannons 137 | . . . . . . . . 137 Explosions 1538 | . 885 131 . 204 42 276 . . Melee 3429 | . . . . . 279 2636 . 514 Ramming . | . . . . . . . . . Kinetic 390 | 69 . . . 96 88 . . 137 Thermal 927 | 165 437 11 . . 125 189 . . Explosive 1008 | . 544 131 . 204 42 87 . . Electromagnetic 244 | . 244 . . . . . . . Impact 3357 | . . . . . 279 2636 . 442 Slashing 72 | . . . . . . . . 72 Piercing . | . . . . . . . . . Highest Corruption 5 | . . . . . . 3 . 5 Average Corruption 2 | . . . . . . 3 . 2 Corruption Purged . | . . . . . . . . . Corruption Blocked . | . . . . . . . . . Effects 17 | . . . . . . 16 . 1 Message Errors 5 | . . . . . . 5 . . Matter Fused 5 | . . . . . . 4 . 1 Heat Flow Errors 4 | . . . . . . 4 . . Energy Discharges 1 | . . . . . . 1 . . Parts Rejected 1 | . . . . . . 1 . . Data Loss (minor) 1 | . . . . . . 1 . . Overload Shots . | . . . . . . . . . Overflow Damage 1412 | . 63 5 . . 162 1128 . 54 Projectiles . | . . . . . . . . . Explosions 207 | . 63 5 . . . 139 . . Melee 1205 | . . . . . 162 989 . 54 Knockbacks 18 | . . . . . . 6 . 12 Impact 6 | . . . . . . 6 . . Kinetic 12 | . . . . . . . . 12 Secondary . | . . . . . . . . . Self-Inflicted Damage 376 | . 72 . . 28 27 249 . . Shots 7 | . 1 . . 2 1 3 . . Rammed . | . . . . . . . . . Targets Rammed . | . . . . . . . . . Kicked . | . . . . . . . . . Crushed . | . . . . . . . . . Highest Temperature 391 | 150 288 10 . 31 135 391 . . Average Temperature 84 | 51 89 7 . 16 58 124 . . Received Heat Transfer 1548 | . 249 . . 60 297 933 . 9 Siege Activations . | . . . . . . . . . Robots Corrupted . | . . . . . . . . . Combat Hostiles . | . . . . . . . . . Parts Fried 19 | . 1 . . . 2 12 . 4 Impact Corruptions 38 | . . . . . 3 31 . 4 Robots Melted . | . . . . . . . . . Combat Hostiles . | . . . . . . . . . Parts Melted 3 | . 3 . . . . . . . Heat Transferred 1880 | 555 1028 25 . . 172 100 . . Parts Sabotaged . | . . . . . . . . . Parts Stolen . | . . . . . . . . . Parts Stripped . | . . . . . . . . . Power Chain Reactions 2 | . 2 . . . . . . . Alert | -11 -10 -10 -10 -9 -8 -7 -6 -6 ------- Run | Yrd Mat Min Exi Min Mat Fac Fac DSF Peak Influence 506 | 25 506 341 . 115 116 332 162 208 Initial 196 | . 16 196 . . 4 9 162 113 Average 135 | 11 285 190 . 49 60 124 162 159 Maximum Alert Level 2 | . 2 1 . . . 1 . 1 Low Security (%) 72 | 100 17 58 . 100 100 70 100 87 Level 1 23 | . 55 41 . . . 29 . 12 Level 2 3 | . 27 . . . . . . . Level 3 . | . . . . . . . . . Level 4 . | . . . . . . . . . Level 5 . | . . . . . . . . . High Security . | . . . . . . . . . Max Security . | . . . . . . . . . Squads Dispatched 13 | . 3 . . . 3 4 . 3 Investigation 4 | . 2 . . . . 2 . . Extermination 1 | . . . . . . 1 . . Reinforcement 5 | . 1 . . . . 1 . 3 Assault . | . . . . . . . . . Garrison 3 | . . . . . 3 . . . Intercept . | . . . . . . . . . Searches Triggered . | . . . . . . . . . Construction Impeded . | . . . . . . . . . Haulers Reinforced . | . . . . . . . . . Active Scanning Responses . | . . . . . . . . . Cargo Convoy Interrupts . | . . . . . . . . . Stealth | -11 -10 -10 -10 -9 -8 -7 -6 -6 --------- Run | Yrd Mat Min Exi Min Mat Fac Fac DSF Distress Signals 3 | . 2 . . . . 1 . . Communications Jammed . | . . . . . . . . . Distress Signals . | . . . . . . . . . Times Spotted 80 | . 17 6 . 4 8 33 . 12 Peak Tracking Total 7 | . 5 3 . 2 3 7 . 6 Tactical Retreats 10 | . 2 . . . 1 3 . 4 Traps | -11 -10 -10 -10 -9 -8 -7 -6 -6 ------- Run | Yrd Mat Min Exi Min Mat Fac Fac DSF Traps Triggered 9 | . 3 . . . . 2 . 4 Indirectly . | . . . . . . . . . Trap Hack Attempts . | . . . . . . . . . Triggered . | . . . . . . . . . Disarmed . | . . . . . . . . . Reprogrammed 4 | . 4 . . . . . . . Reused . | . . . . . . . . . Traps Extracted . | . . . . . . . . . Installed 4 | . . . . . . . . 4 Triggered . | . . . . . . . . . Most Traps Carried 14 | . . . . . . . . 14 Objects Rigged 7 | . . . . . . 7 . . Exploded 3 | . . . . . . 3 . . Machines | -11 -10 -10 -10 -9 -8 -7 -6 -6 ---------- Run | Yrd Mat Min Exi Min Mat Fac Fac DSF Machines Disabled 18 | . 13 . . 1 . 4 . . Max in Single Turn 4 | . 4 . . 1 . 2 . . Garrison Access 1 | . . . . . . 1 . . Machines Repaired . | . . . . . . . . . Machines Dismantled . | . . . . . . . . . Machines Sabotaged . | . . . . . . . . . Overloaded Fab Kills . | . . . . . . . . . Hacking | -11 -10 -10 -10 -9 -8 -7 -6 -6 --------- Run | Yrd Mat Min Exi Min Mat Fac Fac DSF Machines Accessed 16 | . 5 . 2 . 1 7 1 . Terminals 9 | . 4 . . . 1 3 1 . Fabricators . | . . . . . . . . . Repair Stations 1 | . . . . . . 1 . . Recycling Units 2 | . 1 . . . . 1 . . Scanalyzers 1 | . . . . . . 1 . . Garrison Access 1 | . . . . . . 1 . . Total Hacks 57 | . 16 . 3 . 1 35 2 . Successful 37 | . 9 . 3 . 1 23 1 . Failed 20 | . 7 . . . . 12 1 . Catastrophic . | . . . . . . . . . Database Lockouts . | . . . . . . . . . Manual 1 | . . . 1 . . . . . Terminals 30 | . 15 . . . 1 12 2 . Fabricators . | . . . . . . . . . Repair Stations 4 | . . . . . . 4 . . Recycling Units 3 | . 1 . . . . 2 . . Scanalyzers 15 | . . . . . . 15 . . Garrison Access 2 | . . . . . . 2 . . Terminal Hacks 19 | . 8 . 3 . 1 6 1 . Record 6 | . 3 . 2 . . 1 . . Robot Analysis 1 | . . . . . . 1 . . Open DSF 1 | . . . . . . . 1 . Emergency Access Points 1 | . 1 . . . . . . . Alert Level 2 | . 1 . . . . 1 . . Locate Traps 2 | . . . . . . 2 . . Reprogram Traps 1 | . 1 . . . . . . . Security Status 1 | . . . . . 1 . . . Registered Components 1 | . 1 . . . . . . . Zone Layout 2 | . 1 . . . . 1 . . Derelict Proto ID Bank 1 | . . . 1 . . . . . Fabricator Hacks . | . . . . . . . . . Repair Station Hacks 2 | . . . . . . 2 . . Scan Component 1 | . . . . . . 1 . . Repair 1 | . . . . . . 1 . . Recycling Unit Hacks 2 | . 1 . . . . 1 . . Report Inventory 2 | . 1 . . . . 1 . . Scanalyzer 13 | . . . . . . 13 . . Insert Component 7 | . . . . . . 7 . . Analyze 6 | . . . . . . 6 . . Garrison Access Hacks 1 | . . . . . . 1 . . Seal Access 1 | . . . . . . 1 . . Unauthorized Hacks . | . . . . . . . . . Terminals . | . . . . . . . . . Fabricators . | . . . . . . . . . Repair Stations . | . . . . . . . . . Recycling Units . | . . . . . . . . . Scanalyzers . | . . . . . . . . . Garrison Access . | . . . . . . . . . Data Cores Recovered . | . . . . . . . . . Used . | . . . . . . . . . Hacking Detections 10 | . 4 . . . . 6 . . Full Trace Events 1 | . . . . . . 1 . . Feedback Events . | . . . . . . . . . Feedback Blocked . | . . . . . . . . . Robot Schematics Acquired . | . . . . . . . . . Robots Built . | . . . . . . . . . Authchips . | . . . . . . . . . Time . | . . . . . . . . . Total Robot Build Rating . | . . . . . . . . . Part Schematics Acquired 6 | . . . . . . 6 . . Parts Built . | . . . . . . . . . Authchips . | . . . . . . . . . Time . | . . . . . . . . . Total Part Build Rating . | . . . . . . . . . Parts Repaired 1 | . . . . . . 1 . . Time 44 | . . . . . . 44 . . Parts Recycled . | . . . . . . . . . Recycled Matter . | . . . . . . . . . Retrieved Matter . | . . . . . . . . . Retrieved Components . | . . . . . . . . . Parts Scanalyzed 6 | . . . . . . 6 . . Part Schematics Acquired 6 | . . . . . . 6 . . Parts Damaged . | . . . . . . . . . Bothacking | -11 -10 -10 -10 -9 -8 -7 -6 -6 ------------ Run | Yrd Mat Min Exi Min Mat Fac Fac DSF Used RIF Installer . | . . . . . . . . . Robots Hacked . | . . . . . . . . . Non-combat . | . . . . . . . . . Combat . | . . . . . . . . . Robot Hacks Applied . | . . . . . . . . . Relay Couplers Released . | . . . . . . . . . Fabnet Peak Effective % . | . . . . . . . . . Robots Rewired . | . . . . . . . . . Allies Hacked . | . . . . . . . . . Hacks Repelled . | . . . . . . . . . Allies | -11 -10 -10 -10 -9 -8 -7 -6 -6 -------- Run | Yrd Mat Min Exi Min Mat Fac Fac DSF Total Allies 1 | . . 1 . . . . . . Largest Group 1 | . . 1 . . . . . . Highest-Rated Group 31 | . . 31 . . . . . . Highest-Rated Ally 31 | . . 31 . . . . . . Total Orders 3 | . . . . . 1 2 . . EXPLORE 2 | . . . . . . 2 . . RETURN 1 | . . . . . 1 . . . Ally Attacks 3 | . . 3 . . . . . . Total Damage 64 | . . 64 . . . . . . Kills 3 | . . 3 . . . . . . Allies Corrupted . | . . . . . . . . . Allies Melted . | . . . . . . . . . Intel | -11 -10 -10 -10 -9 -8 -7 -6 -6 ------- Run | Yrd Mat Min Exi Min Mat Fac Fac DSF Robot Analysis Total 1 | . . . . . . 1 . . Derelict Logs Recovered 3 | . . 2 . 1 . . . . Drone Launches 3 | . . . . . 1 2 . . Drone Recoveries 2 | . . . . . 1 1 . . Exploration | -11 -10 -10 -10 -9 -8 -7 -6 -6 ------------- Run | Yrd Mat Min Exi Min Mat Fac Fac DSF Turns Passed 5597 | 110 674 917 917 1116 522 1062 14 265 Spaces Moved 4270 | 58 692 637 642 768 395 849 20 209 Core 129 | 2 1 . . . 2 . . 124 Treads 147 | . . . . . 19 128 . . Legs 81 | . . . . . 81 . . . Wheels 2850 | 56 527 637 642 768 72 138 . 10 Hover 899 | . . . . . 221 583 20 75 Flight 164 | . 164 . . . . . . . Fastest Speed 32 | 50 32 140 140 140 56 51 56 50 Average Speed 106 | 86 73 140 140 140 81 79 56 55 Slowest Speed 190 | 95 150 140 140 140 190 160 56 120 Overloaded Moves . | . . . . . . . . . Propulsion Burnouts . | . . . . . . . . . Robots Hopped . | . . . . . . . . . Cave-ins Triggered . | . . . . . . . . . Exploration Rate (%) 59 | 4 85 99 93 97 29 38 1 93 Regions Visited 8 Branch Regions 3 Pre-discovered Areas 2 | . . 1 . 1 . . . . Known Exits Taken 7 | . 1 1 1 1 1 1 1 . Unknown Exits Taken 1 | 1 . . . . . . . . Scrap Searched 3 | . . 1 . 2 . . . . Spaces Dug 22 | . . . . 16 2 4 . . Terrain Destroyed 289 | . 126 1 . 71 23 68 . . Melee 6 | . . . . . 2 4 . . Projectile 2 | . . . . 2 . . . . AOE 281 | . 126 1 . 69 21 64 . . Terrain Rammed . | . . . . . . . . . Walls Destroyed . | . . . . . . . . . Machines Disabled . | . . . . . . . . . Actions | -11 -10 -10 -10 -9 -8 -7 -6 -6 --------- Run | Yrd Mat Min Exi Min Mat Fac Fac DSF Total 5003 | 82 795 656 661 792 557 1114 22 324 Wait 244 | . 14 9 13 2 77 102 . 27 Move 4262 | 57 691 636 641 767 394 848 19 209 Hop . | . . . . . . . . . Pick Up 101 | . 15 4 6 4 22 32 . 18 Fast Attach 31 | 7 8 1 . . 6 5 . 4 Attach 39 | . 3 . . 2 10 15 2 7 Detach 8 | . 1 . . . 1 4 1 1 Swap 47 | 1 7 3 . . 12 23 . 1 Drop 46 | . 12 . 1 . 10 16 . 7 Fire 102 | 17 44 3 . 17 16 . . 5 Melee 87 | . . . . . 9 62 . 16 Ram . | . . . . . . . . . Kick . | . . . . . . . . . Crush . | . . . . . . . . . Escape Stasis 25 | . . . . . . . . 25 Rewire . | . . . . . . . . . Trap 11 | . . . . . . 7 . 4 Miscellaneous . | . . . . . . . . . Route ------- -11/Scrapyard -10/Materials (discovered 4 exits: *Mat x2 / *Min x2) -10/Mines (discovered 3 exits: *Mat x2 / *Exi) -10/Exiles (discovered 2 exits: *Min x2) -9/Mines (discovered 2 exits: *Mat x2) -8/Materials -7/Factory (discovered 2 exits: *Fac x2) -6/Factory -6/DSF (discovered 1 exit: *Fac) History --------- Turn | Location | Event 8 | -11/Scrapyard | Discovered new exit (range 15) 111 | -11/Scrapyard | Entered Materials 165 | -10/Materials | Discovered new exit (range 10) 182 | -10/Materials | Discovered new exit (range 11) 187 | -10/Materials | Discovered new exit (range 15) 276 | -10/Materials | Discovered new exit (range 15) 319 | -10/Materials | Build established: Mutant 446 | -10/Materials | Lost 4 parts (1p1n1u1w) 686 | -10/Materials | Core integrity fell below 50% 784 | -10/Materials | Identified exit to Mines 785 | -10/Materials | Entered Mines 893 | -10/Mines | Met a Derelict bent on vengeance 917 | -10/Mines | Learned Materials non-interactive machine intel 920 | -10/Mines | Learned location of Recycling (-9) 941 | -10/Mines | Received a Mining Laser from a helpful Derelict 994 | -10/Mines | Discovered new exit (range 10) 1021 | -10/Mines | Identified exit to Materials 1081 | -10/Mines | Discovered exit to Materials (range 13) 1205 | -10/Mines | A weapon hastily lodged in a ceiling crevice suddenly fell to the ground 1696 | -10/Mines | Deemed a non-threat by the Exiles lab entrance 1696 | -10/Mines | Discovered new exit (range 5) 1700 | -10/Mines | Identified exit to Exiles 1702 | -10/Mines | Entered Exiles 1745 | -10/Exiles | Discovered new exit (range 14) 1760 | -10/Exiles | Identified exit to Mines 1791 | -10/Exiles | Met 8R-AWN 1812 | -10/Exiles | Met EX-HEX 1872 | -10/Exiles | Met EX-DEC 1905 | -10/Exiles | Visited The Gauntlet 2176 | -10/Exiles | Discovered exit to Mines (range 11) 2285 | -10/Exiles | Met EX-BIN 2337 | -10/Exiles | Aligned with FarCom system 2338 | -10/Exiles | Given EX-Vault access code 2396 | -10/Exiles | Opened EX-Vault 2468 | -10/Exiles | Found Supersonic Drone Bay 2471 | -10/Exiles | Found PSU Rigger 2479 | -10/Exiles | Found Lightpack 2.0 2519 | -10/Exiles | Warned to stay clear of 0b10 Research branches 2619 | -10/Exiles | Stole three prototypes: Lightpack 2.0, Supersonic Drone Bay, PSU Rigger 2619 | -10/Exiles | Entered Mines 2777 | -9/Mines | Learned Materials trap positions 2814 | -9/Mines | Learned location of Storage (-9) 3331 | -9/Mines | Discovered new exit (range 3) 3335 | -9/Mines | Identified exit to Materials 3442 | -9/Mines | Found a damaged Exp. Sensor Array with a note attached 3444 | -9/Mines | Found Prototype Device 3469 | -9/Mines | Discovered exit to Materials (range 9) 3735 | -9/Mines | Entered Materials 3735 | -8/Materials | Evolved 4 slots: Utility x4 3736 | -8/Materials | Loaded intel: 17 trap records 3737 | -8/Materials | Loaded intel: 21 non-interactive machine locations 3737 | -8/Materials | Identified Exp. Sensor Array 3814 | -8/Materials | Garrison activated, responded to threat 3932 | -8/Materials | Lost 5 parts (1p1n1u2w) 4114 | -8/Materials | Build established: Hauler-Mutant 4250 | -8/Materials | Discovered new exit (range 14) 4256 | -8/Materials | Identified exit to Factory 4257 | -8/Materials | Entered Factory 4257 | -7/Factory | Evolved 2 slots: Utility x2 4259 | -7/Factory | FarCom data flow suspended 4567 | -7/Factory | Lost 5 parts (1p2n2u) 4622 | -7/Factory | Found Powered Armor 4662 | -7/Factory | Discovered new exit (range 118) 4960 | -7/Factory | Core integrity fell below 50% 4970 | -7/Factory | Repaired Powered Armor? 5115 | -7/Factory | Build established: Hauler-Gladiator 5130 | -7/Factory | Core integrity fell below 20% 5236 | -7/Factory | Found Powered Armor 5238 | -7/Factory | Found Powered Armor 5314 | -7/Factory | Discovered new exit (range 10) 5319 | -7/Factory | Identified exit to Factory 5319 | -7/Factory | Entered another Factory area 5319 | -6/Factory | Evolved 2 slots: Propulsion x1, Utility x1 5332 | -6/Factory | Identified exit to DSF 5333 | -6/Factory | Entered DSF 5388 | -6/DSF | Additional patrols routed to DSF 5493 | -6/DSF | Lost 5 parts (2n1u2w) 5541 | -6/DSF | Discovered new exit (range 14) 5547 | -6/DSF | Identified exit to Factory 5564 | -6/DSF | Core integrity fell below 50% 5580 | -6/DSF | Core integrity fell below 20% 5598 | -6/DSF | Destroyed by C-17 Slicer with Blade Saw Last Messages --------------- 05564_ Core Analyzer severed. 05566_ Knocked back. 05568_ X-62 Marksman knocked back. 05568_ Knocked back. 05568_ Melee Analysis Suite destroyed. 05568_ System corrupted by crushing effect (+3). 05568_ Knocked back. 05574_ X-62 Marksman springs to life. 05574_ Penetrated by Slug. 05579_ Imp. Signal Interpreter severed. 05580_ Signal Interpreter severed. 05580_ Penetrated by Slug. 05583_ Acquired Flak Cannon. 05587_ C-17 Slicer knocked back. 05589_ Flak Cannon severed. 05590_ C-17 Slicer knocked back. 05592_ P-60 Hacker knocked back. 05594_ C-17 Slicer knocked back. 05596_ C-17 Slicer destroyed. 05596_ Flak Cannon severed. Map ----- +----------------------------------------------------+ | ??????### ### # ### ### #!!### ## | | ???????## ##########!! ########## ## | | ???????# #????????! #??????#!! !# | | ???????# &&#????????! #??????#!! !# | | ???????## ###??????### ###??????### ## | | ???????# #??????#|| !!#??????#!! !# | | ???????# #??????#|| !!#??????#!! !# | | ???????# ^ ##??????|| !!???????#!! !# | | ??????### ^##"#######?# ############ ## | | ??????# * ^## #!!!### ###!!!#!!!## !! | | ?????##[&&^## #!!!## #"!!!#!!!## !! | | ????##&*=^!& | | ????# &%^^!= H | | ?????##**^[/& | | ??????#%&!=#" #!!!## " ##!!!" ## [[ | | ??????#!&!=## #!!!###%" ###!!!# ## [[ | | ??????###&&############" ############ ## | | ???????? = ]?????????!! ]]???????#!! # | | ???????# ]]???????#!! ]]#??????#! # | | ???????# ]]#??????#!! ]]#??????#!! # | | ???????## ###??????### ###??????### ## | | ????????] ]????????#== ]]#??????#!! !# | | ????????] ]????????#== ]]#??????#!! !# | | ????????# ##########== ]]########## ## | | ??????### #?# #]c]### ###!!!# ### ## | | ??????#"" ## #@]]### ###!!!# ## "" | | ?????"""" c % x "" | | ??????#"" "" | | ??????#"""""## #]]]#**p!! #!!!# ##""""" | | ???????"""???########**!!! #########""""" | | ????????????????????#########???????##"### | | ?????????????????????????????????????#"#?? | | ?????????????????????????????????????#""?? | | ?????????????????????????????????????????? | | ?????????????????????????????????????????? | | ?????????????????????????????????????????? | | ?????????????????????????????????????????? | | ?????????????????????????????????????????? | | | | | | | | | | | | | | | | | | | | | | | | | +----------------------------------------------------+ Best States ------------- Heat Dissipation 47 Energy Generation 18 Energy Capacity 250 Matter Stores 300 Matter Capacity 300 Sight Range 16 Robot Scan Range 20 Terrain Scan Range 16 Terrain Scan Density 10 Additional Mass Support 9 Armor Coverage 625 Utility Shielding 33 Evasion (%) 63 Melee Accuracy 5 Core Analysis 6 Recoil Reduction 2 Item Schematics ----------------- Spread Laser | -7/Factory | Scanalyzed Utility Shielding | -7/Factory | Scanalyzed Signal Interpreter | -7/Factory | Scanalyzed Sensor Array | -7/Factory | Scanalyzed Core Analyzer | -7/Factory | Scanalyzed Cooling System | -7/Factory | Scanalyzed Robot Schematics ------------------ None Fabricated ------------ Nothing Alien Tech Used ----------------- None Achievements -------------- Packrat Challenges ------------ None Game ------ Seed DisposableMeleeCloak Manual? 0 Play Time 01:26:41 Cumulative 29.3 hours Start 2024.04.09 @ 05:50:55 End 2024.04.09 @ 18:00:36 Sessions 3 Manual Loads 0 Difficulty Rogue Special Mode None Game No. 28 Rogue 28 Adventurer 0 Explorer 0 Win Type - Total 0 Types 0/0/0/0/0/0/0/0/0 Lore% 23 Gallery% 30 Achievement% 23 Wizard Run 0 Options --------- Layout 0 ASCII 0 Keyboard 0 Movement Mouse Keybinds 0 Fullscreen 1 Font 24/Smallcaps Map View 183x50 Zoom Use 0% Tactical HUD 1 Map Filters NONE Filters NONE Steam 0 RUN: 620e39b0-2874-4cfa-8c41-1ef13f59f8b5